bitfinex/quotes_BTCUSD_20230901
["timestamp","ask_amount","ask_price","bid_price","bid_amount"]
[1693532194786,0.053,26020.0,26019.0,3.43960978]
[1693532194998,0.053,26020.0,26019.0,3.56956978]
[1693532195402,0.053,26020.0,26019.0,3.43804978]
[1693532195795,0.053,26020.0,26019.0,3.43828978]
[1693532196023,0.053,26020.0,26019.0,3.43678978]
[1693532196227,0.053,26020.0,26019.0,3.43810978]
[1693532196425,0.053,26020.0,26019.0,3.56992978]
[1693532196672,0.053,26020.0,26019.0,3.57064978]
[1693532196870,0.053,26020.0,26019.0,3.57040978]
[1693532197218,0.053,26020.0,26019.0,3.57100978]
[1693532197379,0.053,26020.0,26019.0,3.57112978]
[1693532197578,0.053,26020.0,26019.0,3.57040978]
[1693532197779,0.053,26020.0,26019.0,3.43564978]
[1693532197933,0.053,26020.0,26019.0,3.43132978]
[1693532198136,0.053,26020.0,26019.0,3.43060978]
[1693532198335,0.053,26020.0,26019.0,3.43066978]
[1693532198534,0.053,26020.0,26019.0,3.43204978]
[1693532198767,0.053,26020.0,26019.0,3.43222978]
[1693532198968,0.053,26020.0,26019.0,3.43228978]
[1693532199370,0.053,26020.0,26019.0,3.43234978]
[1693532199568,0.053,26020.0,26019.0,3.43492978]
[1693532199746,0.053,26020.0,26019.0,3.57640978]
[1693532199972,0.053,26020.0,26019.0,3.57400978]
[1693532200168,0.053,26020.0,26019.0,3.57664978]
[1693532200343,0.053,26020.0,26019.0,3.57712978]
[1693532200547,0.053,26020.0,26019.0,3.57688978]
[1693532200742,0.053,26020.0,26019.0,3.57700978]
[1693532201073,0.053,26020.0,26019.0,3.57832978]
[1693532201244,0.053,26020.0,26019.0,3.43882978]
[1693532201451,0.053,26020.0,26019.0,3.57496978]
[1693532201647,0.053,26020.0,26019.0,3.57472978]
[1693532201846,0.053,26020.0,26019.0,3.57592978]
[1693532202006,0.053,26020.0,26019.0,3.57172978]
[1693532202207,0.053,26020.0,26019.0,3.57532978]
[1693532202410,0.053,26020.0,26019.0,3.57724978]
[1693532202617,0.053,26020.0,26019.0,3.59704978]
[1693532202809,0.053,26020.0,26019.0,3.59692978]
[1693532203241,0.053,26020.0,26019.0,3.60040978]
[1693532203604,0.053,26020.0,26019.0,3.60028978]
[1693532203780,0.053,26020.0,26019.0,3.60160978]
[1693532204079,0.053,26020.0,26019.0,3.58684978]
[1693532204286,0.053,26020.0,26019.0,3.58636978]
[1693532204514,0.053,26020.0,26019.0,3.58600978]
[1693532204691,0.053,26020.0,26019.0,3.58588978]
[1693532204900,0.053,26020.0,26019.0,3.58480978]
[1693532205200,0.053,26020.0,26019.0,3.58468978]
[1693532205523,0.053,26020.0,26019.0,3.57892978]
[1693532205697,0.053,26020.0,26019.0,3.58036978]
[1693532205904,0.053,26020.0,26019.0,3.57784978]
[1693532206142,0.053,26020.0,26019.0,3.57712978]
[1693532206343,0.053,26020.0,26019.0,3.43864978]
[1693532206550,0.053,26020.0,26019.0,3.41506978]
[1693532206751,0.053,26020.0,26019.0,3.29392978]
[1693532206953,0.053,26020.0,26019.0,3.28486978]
[1693532207158,0.053,26020.0,26019.0,3.28612978]
[1693532207332,0.053,26020.0,26019.0,3.28642978]
[1693532207591,0.053,26020.0,26019.0,3.28864978]
[1693532207791,0.053,26020.0,26019.0,3.28876978]
[1693532208093,0.053,26020.0,26019.0,3.29320978]
[1693532208294,0.053,26020.0,26019.0,3.29338978]
[1693532208496,0.053,26020.0,26019.0,3.29350978]
[1693532208701,0.053,26020.0,26019.0,3.29392978]
[1693532208909,0.053,26020.0,26019.0,3.29260978]
[1693532209107,0.053,26020.0,26019.0,3.29158978]
[1693532209268,0.053,26020.0,26019.0,3.29020978]
[1693532209474,0.053,26020.0,26019.0,3.29038978]
[1693532209833,0.053,26020.0,26019.0,3.29026978]
[1693532210036,0.053,26020.0,26019.0,3.29050978]
[1693532210177,0.053,26020.0,26019.0,3.29020978]
[1693532210375,0.053,26020.0,26019.0,3.29080978]
[1693532210556,0.053,26020.0,26019.0,3.29074978]
[1693532210762,0.053,26020.0,26019.0,3.28954978]
[1693532211001,0.053,26020.0,26019.0,3.28966978]
[1693532211227,0.053,26020.0,26019.0,3.28978978]
[1693532211433,0.053,26020.0,26019.0,3.28954978]
[1693532211640,0.053,26020.0,26019.0,3.28960978]
[1693532211843,0.053,26020.0,26019.0,3.29314978]
[1693532212045,0.053,26020.0,26019.0,3.29140978]
[1693532212359,0.053,26020.0,26019.0,3.29104978]
[1693532212555,0.053,26020.0,26019.0,3.29212978]
[1693532212761,0.053,26020.0,26019.0,3.29278978]
[1693532212933,0.053,26020.0,26019.0,3.29260978]
[1693532213131,0.053,26020.0,26019.0,3.29236978]
[1693532213338,0.053,26020.0,26019.0,3.29218978]
[1693532213514,0.053,26020.0,26019.0,3.29236978]
[1693532213734,0.053,26020.0,26019.0,3.29260978]
[1693532213944,0.053,26020.0,26019.0,3.29296978]
[1693532214144,0.053,26020.0,26019.0,3.29206978]
[1693532214347,0.053,26020.0,26019.0,3.29284978]
[1693532214541,0.053,26020.0,26019.0,3.29326978]
[1693532214891,0.053,26020.0,26019.0,3.29308978]
[1693532215117,0.053,26020.0,26019.0,3.29314978]
[1693532215320,0.053,26020.0,26019.0,2.88850978]
[1693532215526,0.053,26020.0,26019.0,2.86498978]
[1693532215724,0.053,26020.0,26019.0,2.85748978]
[1693532215873,0.053,26020.0,26019.0,2.76878978]
[1693532217345,0.053,26020.0,26019.0,2.78878978]
[1693532218306,0.25881798,26020.0,26019.0,2.261703]
[1693532218517,0.25881798,26020.0,26019.0,1.685202]
[1693532218735,0.35054365,26020.0,26019.0,0.074]
[1693532218943,0.35054365,26020.0,26019.0,0.094]
[1693532219161,0.34754365,26020.0,26019.0,0.057]
[1693532219377,0.34754365,26020.0,26019.0,0.02]
[1693532219573,0.35054365,26020.0,26019.0,0.094]
[1693532220231,0.35054365,26020.0,26019.0,0.057]
[1693532220585,0.35054365,26020.0,26019.0,0.087]
[1693532220793,0.34754365,26020.0,26019.0,0.05]
[1693532221086,0.34854365,26020.0,26019.0,0.642501]
[1693532221293,0.48513216,26020.0,26019.0,0.626501]
[1693532221506,0.27931418,26020.0,26019.0,0.626501]
[1693532221707,0.28031418,26020.0,26019.0,0.760701]
[1693532222121,0.28031418,26020.0,26019.0,1.337202]
[1693532222334,0.28031418,26020.0,26019.0,2.39212978]
[1693532222335,0.14272567,26020.0,26019.0,2.39212978]
[1693532222579,0.051,26020.0,26019.0,2.40118978]
[1693532222781,0.051,26020.0,26019.0,2.40064978]
[1693532222980,0.14272567,26020.0,26019.0,2.40202978]
[1693532223157,0.14272567,26020.0,26019.0,2.40178978]
[1693532223361,0.14272567,26020.0,26019.0,2.40166978]
[1693532223580,0.14272567,26020.0,26019.0,2.40136978]
[1693532223778,0.14272567,26020.0,26019.0,2.40142978]
[1693532223979,0.051,26020.0,26019.0,2.40112978]
[1693532224182,0.051,26020.0,26019.0,2.40580978]
[1693532224380,0.051,26020.0,26019.0,2.40244978]
[1693532224558,0.051,26020.0,26019.0,2.40154978]
[1693532224762,0.051,26020.0,26019.0,2.40130978]
[1693532224965,0.051,26020.0,26019.0,2.40046978]
[1693532225205,0.051,26020.0,26019.0,2.40106978]
[1693532225389,0.051,26020.0,26019.0,2.40310978]
[1693532225691,0.051,26020.0,26019.0,2.40268978]
[1693532225888,0.051,26020.0,26019.0,2.40250978]
[1693532226226,0.051,26020.0,26019.0,2.40286978]
[1693532226458,0.051,26020.0,26019.0,2.40448978]
[1693532226663,0.051,26020.0,26019.0,2.40280978]
[1693532226862,0.051,26020.0,26019.0,2.40220978]
[1693532227069,0.051,26020.0,26019.0,2.40244978]
[1693532227296,0.051,26020.0,26019.0,2.40382978]
[1693532227509,0.051,26020.0,26019.0,2.40886978]
[1693532227708,0.051,26020.0,26019.0,2.43064978]
[1693532227916,0.051,26020.0,26019.0,2.42578978]
[1693532228214,0.051,26020.0,26019.0,2.42614978]
[1693532228418,0.051,26020.0,26019.0,2.42578978]
[1693532228617,0.051,26020.0,26019.0,2.42494978]
[1693532228824,0.051,26020.0,26019.0,2.42362978]
[1693532229023,0.051,26020.0,26019.0,2.42326978]
[1693532229217,0.051,26020.0,26019.0,2.42278978]
[1693532229419,0.051,26020.0,26019.0,2.42350978]
[1693532229579,0.051,26020.0,26019.0,2.42758978]
[1693532229776,0.051,26020.0,26019.0,2.42722978]
[1693532229976,0.051,26020.0,26019.0,2.42662978]
[1693532230187,0.051,26020.0,26019.0,2.42680978]
[1693532230395,0.051,26020.0,26019.0,2.42686978]
[1693532230598,0.051,26020.0,26019.0,2.42656978]
[1693532230899,0.051,26020.0,26019.0,2.42608978]
[1693532231117,0.051,26020.0,26019.0,2.42596978]
[1693532231317,0.051,26020.0,26019.0,2.42866978]
[1693532231530,0.051,26020.0,26019.0,2.42380978]
[1693532231724,0.051,26020.0,26019.0,2.42326978]
[1693532231973,0.051,26020.0,26019.0,2.42080978]
[1693532232126,0.051,26020.0,26019.0,2.42044978]
[1693532232332,0.051,26020.0,26019.0,2.41912978]
[1693532232527,0.051,26020.0,26019.0,2.41888978]
[1693532232758,0.051,26020.0,26019.0,2.41852978]
[1693532232934,0.051,26020.0,26019.0,2.41708978]
[1693532233133,0.051,26020.0,26019.0,2.41630978]
[1693532233288,0.051,26020.0,26019.0,2.41606978]
[1693532233496,0.051,26020.0,26019.0,2.41576978]
[1693532233700,0.051,26020.0,26019.0,2.41546978]
[1693532233946,0.051,26020.0,26019.0,2.41480978]
[1693532234159,0.14272567,26020.0,26019.0,2.32078978]
[1693532235898,0.28031418,26020.0,26019.0,2.32078978]
[1693532242466,0.27531418,26020.0,26019.0,2.32078978]
[1693532243629,0.13772567,26020.0,26019.0,2.32078978]
[1693532246415,0.4073216,26020.0,26019.0,0.740701]
[1693532246599,0.4073216,26020.0,26019.0,0.046]
[1693532246600,0.45318444,26020.0,26019.0,0.046]
[1693532246827,0.69915113,26020.0,26019.0,0.046]
[1693532248565,0.45318444,26020.0,26019.0,0.046]
[1693532249346,0.69902543,26020.0,26019.0,0.046]
[1693532249551,0.45318444,26020.0,26019.0,0.046]
[1693532252620,0.45318444,26020.0,26019.0,0.622501]
[1693532253232,0.59106961,26020.0,26019.0,0.622501]
[1693532255842,0.59106961,26020.0,26019.0,0.046]
[1693532256200,0.45318444,26020.0,26019.0,0.046]
[1693532257231,0.69923923,26020.0,26019.0,0.046]
[1693532257564,0.45318444,26020.0,26019.0,0.046]
[1693532258200,0.69933024,26020.0,26019.0,0.046]
[1693532258417,0.45318444,26020.0,26019.0,0.046]
[1693532260274,0.6992461,26020.0,26019.0,0.046]
[1693532261027,0.6988621,26020.0,26019.0,0.046]
[1693532266689,1.46463566,26020.0,26019.0,0.046]
[1693532266891,2.21931466,26020.0,26019.0,0.046]
[1693532267092,2.49449168,26020.0,26019.0,0.046]
[1693532267704,2.43449168,26020.0,26019.0,0.016]
[1693532267880,2.43449168,26020.0,26013.0,1.20228396]
[1693532267881,0.02,26017.0,26013.0,1.20228396]
[1693532268113,0.22978865,26016.0,26013.0,0.62565896]
[1693532268309,0.24070576,26015.0,26013.0,0.62565896]
[1693532268737,0.24070576,26015.0,26013.0,0.576618]
[1693532269936,0.39350576,26015.0,26013.0,0.579618]
[1693532270336,0.39350576,26015.0,26013.0,0.576618]
[1693532270534,0.39450576,26015.0,26013.0,0.592618]
[1693532270770,0.39450576,26015.0,26013.0,0.623618]
[1693532271405,0.24628311,26014.0,26013.0,0.623618]
[1693532272013,0.24628311,26014.0,26013.0,0.047]
[1693532272194,0.24628311,26014.0,26013.0,0.016]
[1693532272820,0.24628311,26014.0,26012.0,1.271491]
[1693532273023,0.24628311,26014.0,26013.0,0.066]
[1693532273196,0.24828311,26014.0,26013.0,0.066]
[1693532274046,0.002,26014.0,26013.0,0.066]
[1693532274788,0.002,26014.0,26013.0,2.35310878]
[1693532275004,0.002,26014.0,26013.0,2.37916878]
[1693532275206,0.002,26014.0,26013.0,2.37964878]
[1693532275500,0.002,26014.0,26013.0,2.37682878]
[1693532275679,0.002,26014.0,26013.0,2.37688878]
[1693532275903,0.002,26014.0,26013.0,2.37502878]
[1693532276112,0.002,26014.0,26013.0,2.37496878]
[1693532276313,0.002,26014.0,26013.0,2.40998878]
[1693532276534,0.002,26014.0,26013.0,2.40980878]
[1693532276669,0.002,26014.0,26013.0,2.40974878]
[1693532276893,0.002,26014.0,26013.0,2.40956878]
[1693532277106,0.002,26014.0,26013.0,2.40944878]
[1693532277300,0.002,26014.0,26013.0,2.40908878]
[1693532277504,0.002,26014.0,26013.0,2.40878878]
[1693532277936,0.002,26014.0,26013.0,2.40842878]
[1693532278112,0.002,26014.0,26013.0,2.40836878]
[1693532278305,0.002,26014.0,26013.0,2.40824878]
[1693532278631,0.002,26014.0,26013.0,2.41268878]
[1693532278812,0.002,26014.0,26013.0,2.41772878]
[1693532279014,0.002,26014.0,26013.0,2.41946878]
[1693532279197,0.002,26014.0,26013.0,2.41922878]
[1693532279809,0.002,26014.0,26013.0,2.41964878]
[1693532280045,0.002,26014.0,26013.0,2.41832878]
[1693532280251,0.002,26014.0,26013.0,2.41856878]
[1693532280452,0.002,26014.0,26013.0,2.41790878]
[1693532280655,0.002,26014.0,26013.0,2.41766878]
[1693532280861,0.002,26014.0,26013.0,2.41514878]
[1693532281071,0.002,26014.0,26013.0,2.41442878]
[1693532281270,0.002,26014.0,26013.0,2.41664878]
[1693532281653,0.002,26014.0,26013.0,2.41586878]
[1693532281853,0.002,26014.0,26013.0,2.41568878]
[1693532281987,0.002,26014.0,26013.0,2.41544878]
[1693532282192,0.002,26014.0,26013.0,2.41526878]
[1693532282389,0.002,26014.0,26013.0,2.41544878]
[1693532282592,0.002,26014.0,26013.0,2.41184878]
[1693532282842,0.002,26014.0,26013.0,2.40452878]
[1693532283007,0.002,26014.0,26013.0,2.40446878]
[1693532283248,0.002,26014.0,26013.0,2.40254878]
[1693532283455,0.002,26014.0,26013.0,2.40242878]
[1693532283657,0.002,26014.0,26013.0,2.40110878]
[1693532283857,0.002,26014.0,26013.0,2.40170878]
[1693532284059,0.002,26014.0,26013.0,2.40020878]
[1693532284262,0.002,26014.0,26013.0,2.39138878]
[1693532284460,0.002,26014.0,26013.0,2.39102878]
[1693532284677,0.002,26014.0,26013.0,2.38640878]
[1693532284851,0.002,26014.0,26013.0,2.38670878]
[1693532285055,0.002,26014.0,26013.0,2.38772878]
[1693532285234,0.002,26014.0,26013.0,2.32118878]
[1693532285433,0.002,26014.0,26013.0,1.74455478]
[1693532285646,0.002,26014.0,26013.0,2.32118878]
[1693532287924,0.002,26014.0,26013.0,1.74455478]
[1693532292599,0.002,26014.0,26013.0,1.81139478]
[1693532292800,0.002,26014.0,26013.0,1.81337478]
[1693532293002,0.002,26014.0,26013.0,1.81439478]
[1693532293211,0.002,26014.0,26013.0,1.81625478]
[1693532293432,0.002,26014.0,26013.0,1.81613478]
[1693532293666,0.002,26014.0,26013.0,1.81607478]
[1693532294019,0.002,26014.0,26013.0,1.81583478]
[1693532294366,0.002,26014.0,26013.0,1.81133478]
[1693532294573,0.002,26014.0,26013.0,1.81169478]
[1693532294773,0.002,26014.0,26013.0,1.81307478]
[1693532294978,0.002,26014.0,26013.0,1.81301478]
[1693532295204,0.002,26014.0,26013.0,1.81367478]
[1693532295496,0.002,26014.0,26013.0,1.81379478]
[1693532295950,0.002,26014.0,26013.0,1.81115478]
[1693532296126,0.002,26014.0,26013.0,1.81049478]
[1693532296501,0.002,26014.0,26013.0,1.81205478]
[1693532296706,0.002,26014.0,26013.0,1.81055478]
[1693532296903,0.002,26014.0,26013.0,1.81193478]
[1693532297114,0.002,26014.0,26013.0,1.81175478]
[1693532297316,0.002,26014.0,26013.0,1.81205478]
[1693532297538,0.002,26014.0,26013.0,1.81061478]
[1693532297811,0.002,26014.0,26013.0,1.80965478]
[1693532298185,0.002,26014.0,26013.0,1.81037478]
[1693532298398,0.002,26014.0,26013.0,1.80923478]
[1693532298606,0.002,26014.0,26013.0,1.80953478]
[1693532298948,0.002,26014.0,26013.0,1.74455478]
[1693532299235,0.002,26014.0,26013.0,1.80935478]
[1693532299438,0.002,26014.0,26013.0,1.81187478]
[1693532299653,0.002,26014.0,26013.0,1.81031478]
[1693532299828,0.002,26014.0,26013.0,1.81025478]
[1693532300187,0.002,26014.0,26013.0,1.80995478]
[1693532300381,0.002,26014.0,26013.0,1.81235478]
[1693532300587,0.002,26014.0,26013.0,1.81277478]
[1693532300785,0.002,26014.0,26013.0,1.81139478]
[1693532300986,0.002,26014.0,26013.0,1.81379478]
[1693532301196,0.002,26014.0,26013.0,1.81103478]
[1693532301394,0.002,26014.0,26013.0,1.81241478]
[1693532301587,0.002,26014.0,26013.0,1.81331478]
[1693532301933,0.002,26014.0,26013.0,1.81313478]
[1693532302281,0.002,26014.0,26013.0,1.81319478]
[1693532302504,0.002,26014.0,26013.0,1.81307478]
[1693532302711,0.002,26014.0,26013.0,1.81211478]
[1693532302930,0.002,26014.0,26013.0,1.81325478]
[1693532303139,0.002,26014.0,26013.0,1.81319478]
[1693532303317,0.002,26014.0,26013.0,1.81313478]
[1693532303520,0.002,26014.0,26013.0,1.81319478]
[1693532303722,0.002,26014.0,26013.0,1.81313478]
[1693532303929,0.002,26014.0,26013.0,1.80953478]
[1693532304243,0.002,26014.0,26013.0,1.80995478]
[1693532304365,0.002,26014.0,26013.0,1.80989478]
[1693532304769,0.002,26014.0,26013.0,1.80947478]
[1693532304971,0.002,26014.0,26013.0,1.74455478]
[1693532305171,0.002,26014.0,26013.0,1.80965478]
[1693532305373,0.002,26014.0,26013.0,1.74455478]
[1693532309844,0.35122711,26014.0,26013.0,0.2042]
[1693532310249,0.35122711,26014.0,26013.0,0.1842]
[1693532310964,0.35122711,26014.0,26013.0,0.1792]
[1693532311774,0.4891003,26014.0,26013.0,0.1792]
[1693532312486,0.35122711,26014.0,26013.0,0.1792]
[1693532312783,0.4891003,26014.0,26013.0,0.1792]
[1693532313544,0.4891003,26014.0,26013.0,0.1742]
[1693532313747,0.35122711,26014.0,26013.0,0.1742]
[1693532313957,0.4891003,26014.0,26013.0,0.1742]
[1693532314559,0.35122711,26014.0,26013.0,0.1742]
[1693532316324,0.35122711,26014.0,26013.0,0.1692]
[1693532319045,0.35122711,26014.0,26013.0,0.1642]
[1693532325624,0.09391546,26014.0,26013.0,0.1642]
[1693532325961,0.09391546,26014.0,26013.0,0.807974]
[1693532326172,0.09391546,26014.0,26013.0,0.808694]
[1693532326379,0.09391546,26014.0,26013.0,0.808634]
[1693532326579,0.09391546,26014.0,26013.0,0.808454]
[1693532326781,0.09391546,26014.0,26013.0,0.812714]
[1693532326958,0.09391546,26014.0,26013.0,0.812414]
[1693532327255,0.09391546,26014.0,26013.0,0.812354]
[1693532327485,0.09391546,26014.0,26013.0,0.811754]
[1693532327636,0.09391546,26014.0,26013.0,0.811454]
[1693532327838,0.09391546,26014.0,26013.0,0.811334]
[1693532328040,0.09391546,26014.0,26013.0,0.811274]
[1693532328238,0.09391546,26014.0,26013.0,0.811214]
[1693532328421,0.09391546,26014.0,26013.0,0.811874]
[1693532328622,0.09391546,26014.0,26013.0,0.811214]
[1693532328852,0.09391546,26014.0,26013.0,0.810734]
[1693532329214,0.09391546,26014.0,26013.0,0.810614]
[1693532329399,0.09391546,26014.0,26013.0,0.810554]
[1693532329593,0.09391546,26014.0,26013.0,0.810434]
[1693532329796,0.09391546,26014.0,26013.0,0.810254]
[1693532329938,0.09391546,26014.0,26013.0,0.810194]
[1693532330135,0.09391546,26014.0,26013.0,0.810134]
[1693532330334,0.09391546,26014.0,26013.0,0.809474]
[1693532330558,0.09391546,26014.0,26013.0,0.809414]
[1693532330762,0.09391546,26014.0,26013.0,0.809534]
[1693532330962,0.37192493,26014.0,26013.0,0.808934]
[1693532331166,0.37192493,26014.0,26013.0,0.740834]
[1693532335072,0.37192493,26014.0,26013.0,0.735834]
[1693532335516,0.09391546,26014.0,26013.0,0.735834]
[1693532341749,0.002,26014.0,26013.0,0.735834]
[1693532341950,0.09391546,26014.0,26013.0,0.735834]
[1693532342146,0.002,26014.0,26013.0,1.978682]
[1693532342369,0.002,26014.0,26013.0,2.37326878]
[1693532342553,0.002,26014.0,26013.0,2.37074878]
[1693532342749,0.002,26014.0,26013.0,2.36786878]
[1693532342957,0.002,26014.0,26013.0,2.36732878]
[1693532343152,0.002,26014.0,26013.0,2.36714878]
[1693532343521,0.002,26014.0,26013.0,2.36474878]
[1693532343727,0.002,26014.0,26013.0,2.35634878]
[1693532343933,0.002,26014.0,26013.0,2.35622878]
[1693532344056,0.002,26014.0,26013.0,2.35604878]
[1693532344255,0.002,26014.0,26013.0,2.35592878]
[1693532344476,0.002,26014.0,26013.0,2.35604878]
[1693532344680,0.002,26014.0,26013.0,2.35574878]
[1693532344881,0.002,26014.0,26013.0,2.35532878]
[1693532345105,0.002,26014.0,26013.0,2.35520878]
[1693532345302,0.002,26014.0,26013.0,2.35628878]
[1693532345533,0.002,26014.0,26013.0,2.35610878]
[1693532345673,0.002,26014.0,26013.0,2.35598878]
[1693532345869,0.002,26014.0,26013.0,2.35586878]
[1693532346080,0.002,26014.0,26013.0,2.35568878]
[1693532346283,0.002,26014.0,26013.0,2.35550878]
[1693532346481,0.002,26014.0,26013.0,2.35526878]
[1693532346685,0.002,26014.0,26013.0,2.35514878]
[1693532346930,0.002,26014.0,26013.0,2.35508878]
[1693532347132,0.002,26014.0,26013.0,2.35538878]
[1693532347313,0.002,26014.0,26013.0,2.35490878]
[1693532347527,0.002,26014.0,26013.0,2.35526878]
[1693532347732,0.002,26014.0,26013.0,2.35442878]
[1693532347932,0.002,26014.0,26013.0,2.35430878]
[1693532348136,0.002,26014.0,26013.0,2.35418878]
[1693532348342,0.002,26014.0,26013.0,2.35406878]
[1693532348584,0.002,26014.0,26013.0,2.35520878]
[1693532348763,0.002,26014.0,26013.0,2.35628878]
[1693532348939,0.002,26014.0,26013.0,2.35604878]
[1693532349305,0.002,26014.0,26013.0,2.35550878]
[1693532349511,0.002,26014.0,26013.0,2.34992878]
[1693532349684,0.002,26014.0,26013.0,2.34968878]
[1693532349818,0.002,26014.0,26013.0,2.34962878]
[1693532350021,0.002,26014.0,26013.0,2.35142878]
[1693532350248,0.002,26014.0,26013.0,2.35136878]
[1693532350448,0.002,26014.0,26013.0,2.35094878]
[1693532350651,0.002,26014.0,26013.0,2.35082878]
[1693532350850,0.002,26014.0,26013.0,2.35076878]
[1693532351090,0.002,26014.0,26013.0,2.35046878]
[1693532351232,0.002,26014.0,26013.0,2.34644878]
[1693532351431,0.002,26014.0,26013.0,2.34314878]
[1693532351654,0.002,26014.0,26013.0,2.34362878]
[1693532351891,0.09391546,26014.0,26013.0,2.34326878]
[1693532352091,0.09391546,26014.0,26013.0,2.34296878]
[1693532352237,0.09391546,26014.0,26013.0,2.34344878]
[1693532352473,0.09391546,26014.0,26013.0,2.34392878]
[1693532352677,0.09391546,26014.0,26013.0,2.34584878]
[1693532352896,2.14669115,26014.0,26013.0,0.041]
[1693532353205,2.25530002,26014.0,26013.0,0.041]
[1693532354013,2.25530002,26014.0,26012.0,0.002522]
[1693532354014,0.02,26013.0,26012.0,0.002522]
[1693532354212,2.22628475,26013.0,26012.0,0.002522]
[1693532354752,1.749902,26013.0,26012.0,0.002522]
[1693532354958,2.39126844,26013.0,26012.0,0.002522]
[1693532355370,0.1,26010.0,26009.0,0.04934196]
[1693532355566,2.7798655,26010.0,26009.0,0.04934196]
[1693532355995,2.7798655,26010.0,26008.0,0.0202]
[1693532355996,0.1,26009.0,26008.0,0.0202]
[1693532356195,2.38694838,26009.0,26008.0,0.0202]
[1693532356874,2.08609458,26009.0,26008.0,0.0202]
[1693532357855,2.17787924,26009.0,26008.0,0.0202]
[1693532358062,2.17987924,26009.0,26008.0,0.0442]
[1693532358477,2.18087924,26009.0,26008.0,0.0492]
[1693532358686,2.17887924,26009.0,26008.0,0.0252]
[1693532358885,2.18087924,26009.0,26008.0,0.0492]
[1693532359061,2.04315366,26009.0,26008.0,0.0492]
[1693532360171,2.27039294,26009.0,26008.0,0.0492]
[1693532360377,2.27055974,26009.0,26008.0,0.0492]
[1693532361405,2.17877508,26009.0,26008.0,0.0492]
[1693532362451,1.951369,26009.0,26008.0,0.0492]
[1693532363040,2.33845578,26009.0,26008.0,0.0492]
[1693532363264,2.55810753,26009.0,26008.0,0.0492]
[1693532363511,2.55810753,26009.0,26008.0,0.029]
[1693532364069,2.33845578,26009.0,26008.0,0.029]
[1693532364513,2.57069112,26009.0,26008.0,0.029]
[1693532364837,2.33845578,26009.0,26008.0,0.029]
[1693532367714,2.53461602,26009.0,26008.0,0.029]
[1693532368287,2.33845578,26009.0,26008.0,0.029]
[1693532369474,2.60557758,26009.0,26008.0,0.029]
[1693532369685,1.5235678,26009.0,26008.0,0.029]
[1693532369890,0.679723,26009.0,26008.0,0.029]
[1693532370097,0.103,26009.0,26008.0,0.029]
[1693532370316,0.679723,26009.0,26008.0,0.029]
[1693532372531,1.256446,26009.0,26008.0,0.029]
[1693532377422,0.679723,26009.0,26008.0,0.029]
[1693532379056,0.659723,26009.0,26008.0,0.029]
[1693532379466,0.599723,26009.0,26008.0,0.029]
[1693532379660,0.599723,26009.0,26008.0,1.948835]
[1693532379661,0.003,26009.0,26008.0,1.948835]
[1693532379875,0.003,26009.0,26008.0,1.950575]
[1693532380095,0.003,26009.0,26008.0,2.47704178]
[1693532380294,0.003,26009.0,26008.0,2.47830178]
[1693532380496,0.003,26009.0,26008.0,2.46654178]
[1693532380795,0.003,26009.0,26008.0,2.46588178]
[1693532381045,0.003,26009.0,26008.0,2.26452178]
[1693532386485,0.003,26009.0,26008.0,2.32914178]
[1693532386688,0.003,26009.0,26008.0,2.33256178]
[1693532386885,0.003,26009.0,26008.0,2.33154178]
[1693532387431,0.003,26009.0,26008.0,2.32980178]
[1693532387723,0.003,26009.0,26008.0,2.32926178]
[1693532387909,0.003,26009.0,26008.0,2.32980178]
[1693532388116,0.003,26009.0,26008.0,2.32932178]
[1693532388349,0.003,26009.0,26008.0,2.26452178]
[1693532389302,0.003,26009.0,26008.0,2.38272178]
[1693532389508,0.003,26009.0,26008.0,2.86020178]
[1693532389710,0.003,26009.0,26008.0,2.87028178]
[1693532389930,0.003,26009.0,26008.0,2.86332178]
[1693532390111,0.003,26009.0,26008.0,2.84196178]
[1693532390377,0.003,26009.0,26008.0,2.83668178]
[1693532390579,0.003,26009.0,26008.0,2.83650178]
[1693532390779,0.003,26009.0,26008.0,2.83386178]
[1693532391008,0.003,26009.0,26008.0,2.83320178]
[1693532391188,0.003,26009.0,26008.0,2.81320178]
[1693532391529,0.003,26009.0,26008.0,2.83110178]
[1693532391730,0.003,26009.0,26008.0,2.83176178]
[1693532391931,0.003,26009.0,26008.0,2.83200178]
[1693532392049,0.003,26009.0,26008.0,2.83188178]
[1693532392253,0.003,26009.0,26008.0,2.83176178]
[1693532392452,0.003,26009.0,26008.0,2.83296178]
[1693532392654,0.003,26009.0,26008.0,2.83284178]
[1693532392898,0.003,26009.0,26008.0,2.83266178]
[1693532393113,0.003,26009.0,26008.0,2.83254178]
[1693532393308,0.003,26009.0,26008.0,2.83260178]
[1693532393509,0.003,26009.0,26008.0,2.83266178]
[1693532393730,0.003,26009.0,26008.0,2.83248178]
[1693532393918,0.003,26009.0,26008.0,2.83206178]
[1693532394116,0.003,26009.0,26008.0,2.83236178]
[1693532394323,0.003,26009.0,26008.0,2.83230178]
[1693532394470,0.003,26009.0,26008.0,2.83218178]
[1693532394669,0.003,26009.0,26008.0,2.83212178]
[1693532395112,0.003,26009.0,26008.0,2.83206178]
[1693532395348,0.003,26009.0,26008.0,2.83200178]
[1693532395496,0.003,26009.0,26008.0,2.83230178]
[1693532395697,0.003,26009.0,26008.0,2.83194178]
[1693532395962,0.003,26009.0,26008.0,2.81188178]
[1693532396161,0.003,26009.0,26008.0,2.83188178]
[1693532396278,0.003,26009.0,26008.0,2.82096178]